bitfinex/quotes_ETHUSD_20220119
["timestamp","ask_amount","ask_price","bid_price","bid_amount"]
[1642618897583,18.82896,3137.7,3136.3,6.461]
[1642618897785,3.68574167,3137.6,3136.4,0.00795792]
[1642618898082,22.35574167,3137.6,3136.4,0.00795792]
[1642618898526,0.15896,3137.5,3136.4,0.00795792]
[1642618898729,0.1275,3137.4,3136.4,0.00795792]
[1642618899329,0.15896,3137.3,3136.4,0.00795792]
[1642618899530,0.1275,3137.2,3136.4,0.00795792]
[1642618899732,0.15896,3137.3,3136.4,0.00795792]
[1642618899733,0.28646,3137.5,3136.4,0.00795792]
[1642618899929,0.28646,3137.5,3136.4,0.13545792]
[1642618900332,0.28646,3137.5,3136.5,0.0073895]
[1642618902378,3.60831107,3137.5,3136.5,0.0073895]
[1642618902776,3.65550025,3137.5,3136.5,0.0073895]
[1642618903076,18.95646,3137.5,3136.5,0.0073895]
[1642618903481,18.67,3137.3,3136.5,0.0073895]
[1642618903780,0.1275,3137.2,3136.5,0.0073895]
[1642618903980,0.1275,3137.2,3136.3,5.769]
[1642618903981,0.1275,3137.2,3136.3,5.76399448]
[1642618904280,0.00341054,3137.1,3136.3,5.76399448]
[1642618904482,0.1275,3137.0,3136.3,5.76399448]
[1642618904681,0.28930212,3137.0,3136.3,5.76399448]
[1642618904885,0.28930212,3137.0,3136.3,5.469]
[1642618904886,0.00227369,3136.9,3136.3,5.469]
[1642618905081,0.12977369,3136.9,3136.3,5.469]
[1642618905283,0.00170527,3136.8,3136.3,5.469]
[1642618905735,0.00113685,3136.7,3136.3,5.469]
[1642618906129,0.00170527,3136.8,3136.3,5.469]
[1642618906529,0.00113685,3136.7,3136.3,5.469]
[1642618906930,0.00170527,3136.8,3136.3,5.769]
[1642618907230,0.1275,3136.9,3136.3,5.769]
[1642618907231,0.00113685,3136.7,3136.3,0.6]
[1642618907635,0.00170527,3136.8,3136.3,0.3]
[1642618907834,0.00170527,3136.8,3135.7,0.4275]
[1642618908036,0.00113685,3136.7,3135.7,0.7275]
[1642618908235,0.15896,3136.6,3135.8,0.00397897]
[1642618908436,0.1275,3136.5,3135.8,0.00397897]
[1642618908835,0.1275,3136.5,3135.7,0.00454739]
[1642618909475,0.1275,3136.5,3135.7,0.30454739]
[1642618911283,0.1275,3136.5,3136.0,1.49747917]
[1642618911683,0.1275,3136.5,3136.1,0.0022737]
[1642618912284,0.1275,3136.7,3136.1,0.0022737]
[1642618912484,0.00170527,3136.8,3136.1,0.0022737]
[1642618912787,0.00113685,3136.7,3136.1,0.0022737]
[1642618913247,0.1275,3136.9,3136.1,0.0022737]
[1642618913435,0.15896,3136.7,3136.1,0.0022737]
[1642618913635,0.1275,3136.6,3136.1,0.0022737]
[1642618914235,0.15941,3136.5,3136.1,0.0022737]
[1642618914436,0.1275,3136.4,3136.1,0.0022737]
[1642618918788,0.15941,3136.2,3136.1,0.0022737]
[1642618918988,0.28691,3136.2,3136.1,0.0022737]
[1642618919189,0.28691,3136.2,3135.4,0.00625266]
[1642618919190,18.82941,3136.2,3135.4,0.00625266]
[1642618920394,0.1275,3136.1,3135.4,0.00625266]
[1642618920599,18.82941,3136.0,3135.4,0.00625266]
[1642618920840,0.1275,3135.9,3135.4,0.00625266]
[1642618922041,0.15941,3135.8,3135.4,0.00625266]
[1642618922238,0.1275,3135.7,3135.4,0.00625266]
[1642618922438,0.1275,3135.7,3135.2,0.00738951]
[1642618922842,0.1275,3135.7,3135.0,0.00852635]
[1642618924481,0.15941,3135.6,3135.0,0.00852635]
[1642618924686,0.1275,3135.5,3135.0,0.00852635]
[1642618924885,0.1275,3135.9,3134.9,0.02160594]
[1642618925086,8.85712631,3136.2,3135.0,0.1275]
[1642618925286,8.85712631,3136.2,3135.0,1.4498697]
[1642618925588,8.85712631,3136.2,3135.1,0.00795793]
[1642618925789,8.85712631,3136.2,3135.2,0.1275]
[1642618925985,8.85712631,3136.2,3135.1,0.00795793]
[1642618925986,0.28691,3136.1,3135.1,0.00795793]
[1642618926186,0.28691,3136.1,3135.3,0.00682108]
[1642618926388,18.95691,3136.1,3135.1,0.00795793]
[1642618926685,18.95691,3136.1,3135.0,0.00852635]
[1642618927090,22.08611,3136.1,3135.0,0.00852635]
[1642618928632,22.08611,3136.1,3134.7,0.01023162]
[1642618928830,22.88366,3136.1,3134.7,0.01023162]
[1642618929027,1.0,3136.0,3134.7,0.01023162]
[1642618929228,0.1275,3135.9,3134.7,0.01023162]
[1642618929429,18.7975,3135.9,3134.7,0.01023162]
[1642618930234,0.95703,3135.8,3134.7,0.01023162]
[1642618930433,18.7975,3135.7,3134.7,0.01023162]
[1642618930838,19.9603,3135.7,3134.7,0.01023162]
[1642618931036,19.9603,3135.7,3134.3,0.01250532]
[1642618931233,0.15941,3135.6,3134.3,0.01250532]
[1642618931434,0.1275,3135.5,3134.3,0.01250532]
[1642618931632,0.79774,3135.3,3134.3,0.01250532]
[1642618931835,18.7975,3135.2,3134.3,0.01250532]
[1642618932280,0.28691,3135.2,3134.3,0.01250532]
[1642618932887,18.67,3135.1,3134.3,0.01250532]
[1642618933280,0.28691,3135.2,3134.2,0.01307374]
[1642618933680,0.28691,3135.2,3134.2,0.31307374]
[1642618933879,0.28691,3135.2,3134.2,0.3]
[1642618934082,0.28691,3135.2,3134.3,0.01250532]
[1642618934480,0.28691,3135.2,3134.1,0.01364216]
[1642618935285,18.95691,3135.2,3134.1,0.01364216]
[1642618935486,18.67,3135.0,3134.1,0.01364216]
[1642618935742,0.1275,3134.9,3134.1,0.01364216]
[1642618936536,0.15941,3134.8,3134.1,0.01364216]
[1642618936739,0.1275,3134.7,3134.1,0.01364216]
[1642618937137,0.1275,3134.7,3133.7,0.01591586]
[1642618937336,0.1275,3134.7,3133.8,0.01534743]
[1642618937536,0.1275,3134.7,3133.6,4.21184775]
[1642618937537,0.1275,3134.7,3133.7,0.01591586]
[1642618937736,0.15941,3134.6,3133.7,0.01591586]
[1642618937941,0.1275,3134.5,3133.8,0.7977]
[1642618938141,0.1275,3134.5,3133.9,0.3]
[1642618938442,0.1275,3134.5,3134.0,0.01421059]
[1642618939041,0.1275,3134.5,3133.7,0.01591586]
[1642618939684,0.1275,3134.5,3133.7,1.28203087]
[1642618939986,0.15941,3134.6,3133.8,2.43889518]
[1642618940388,0.15941,3134.6,3133.9,0.01477901]
[1642618942089,0.15941,3134.6,3133.9,0.3]
[1642618942288,0.1275,3134.5,3133.8,0.01534743]
[1642618942589,0.15941,3134.4,3133.8,0.01534743]
[1642618942788,0.1275,3134.3,3133.8,0.01534743]
[1642618942989,1.72363,3134.3,3133.4,0.01762113]
[1642618943235,18.67,3134.0,3133.2,0.01875798]
[1642618943429,0.1275,3133.9,3133.2,0.01875798]
[1642618943628,0.1275,3133.9,3133.1,0.0193264]
[1642618943834,0.2964,3134.1,3133.9,0.03131591]
[1642618943835,0.1275,3134.0,3133.9,0.03131591]
[1642618944029,0.28691,3134.3,3133.9,0.03131591]
[1642618944229,0.28691,3134.3,3133.9,0.04609492]
[1642618944428,0.28691,3134.3,3134.0,0.01421059]
[1642618945034,2.55941,3134.1,3134.0,0.01421059]
[1642618945235,2.68691,3134.1,3134.0,0.01421059]
[1642618945433,0.28691,3134.1,3134.0,0.01421059]
[1642618945834,0.15941,3134.1,3134.0,0.01421059]
[1642618947683,19.67,3134.9,3134.0,0.01421059]
[1642618947684,1.1275,3134.9,3134.0,0.01421059]
[1642618947884,1.0,3134.8,3134.0,0.31421059]
[1642618948084,18.95691,3134.7,3134.1,0.3]
[1642618948286,18.95691,3134.7,3134.1,0.31364216]
[1642618948484,18.95691,3134.7,3134.2,0.01307374]
[1642618949088,1.0,3134.6,3134.1,0.01364216]
[1642618949284,18.95691,3134.5,3134.1,0.01364216]
[1642618949483,18.95691,3134.5,3134.0,0.01421059]
[1642618950388,18.67,3134.4,3134.0,0.01421059]
[1642618950589,1.0,3134.9,3134.0,0.01421059]
[1642618950590,0.28691,3134.3,3134.0,0.01421059]
[1642618950841,0.15941,3134.1,3134.0,0.01421059]
[1642618951237,0.15941,3134.4,3134.0,0.01421059]
[1642618952439,0.1275,3134.3,3134.0,0.01421059]
[1642618952841,3.05941,3134.1,3134.0,0.01421059]
[1642618953040,21.85691,3134.1,3134.0,0.01421059]
[1642618953242,21.72941,3134.1,3134.0,0.01421059]
[1642618953641,18.82941,3134.1,3134.0,1.059e-05]
[1642618954687,18.95691,3134.1,3134.0,1.059e-05]
[1642618955487,19.75496,3134.1,3134.0,1.059e-05]
[1642618955688,18.95691,3134.1,3134.0,1.059e-05]
[1642618956289,18.82941,3134.1,3134.0,1.059e-05]
[1642618958731,0.15941,3134.1,3134.0,1.059e-05]
[1642618958933,0.15941,3134.5,3134.1,1.44310555]
[1642618959133,0.1275,3135.0,3134.1,1.74310555]
[1642618959334,0.00112626,3134.2,3134.1,2.04310555]
[1642618959539,0.00032626,3134.2,3134.1,2.04310555]
[1642618959736,0.00567365,3135.0,3134.1,0.6]
[1642618959936,0.00567365,3135.0,3134.1,0.3]
[1642618960135,7.26341,3135.1,3134.0,1.059e-05]
[1642618960136,0.00430522,3134.9,3134.0,0.30001059]
[1642618960338,0.00430522,3134.9,3134.0,1.059e-05]
[1642618960536,25.93341,3135.1,3134.0,1.059e-05]
[1642618960537,0.0037368,3134.8,3134.0,1.059e-05]
[1642618960735,0.0037368,3134.8,3134.0,0.00081059]
[1642618960736,0.15941,3134.7,3134.0,0.00081059]
[1642618960938,18.7975,3134.6,3134.0,0.30081059]
[1642618961135,18.80009995,3134.6,3134.0,0.00081059]
[1642618961337,0.00203153,3134.5,3134.0,0.30081059]
[1642618961534,0.00203153,3134.5,3134.0,0.00081059]
[1642618961736,18.7975,3134.6,3134.0,0.30081059]
[1642618961737,0.00146311,3134.4,3134.0,0.30081059]
[1642618961987,0.00146311,3134.4,3134.0,0.00081059]
[1642618962191,0.00089468,3134.3,3134.0,0.30081059]
[1642618962588,18.7975,3134.6,3134.0,0.30081059]
[1642618962589,0.00203153,3134.5,3134.0,0.00081059]
[1642618962788,0.28691,3134.4,3134.0,0.00081059]
[1642618962989,0.28837311,3134.4,3134.0,0.00081059]
[1642618963190,0.00089468,3134.3,3134.0,0.00081059]
[1642618963790,0.00089468,3134.3,3134.0,0.30081059]
[1642618964192,0.00089468,3134.3,3134.0,0.60081059]
[1642618967436,0.00089468,3134.3,3134.0,0.30081059]
[1642618968333,0.00089468,3134.3,3134.0,5.33727127]
[1642618968533,0.00089468,3134.3,3134.0,2.91372352]
[1642618970888,0.00089468,3134.3,3134.0,1.39851049]
[1642618971089,0.00089468,3134.3,3134.0,0.60081059]
[1642618971488,0.1275,3134.2,3134.0,0.30081059]
[1642618972691,0.12839468,3134.3,3134.0,0.30081059]
[1642618973090,0.12839468,3134.3,3134.0,0.60081059]
[1642618973338,0.12839468,3134.3,3134.0,0.30081059]
[1642618973536,0.12839468,3134.3,3134.0,0.60081059]
[1642618974337,0.12839468,3134.3,3134.0,3.02435834]
[1642618976044,0.12839468,3134.3,3134.0,0.60081059]
[1642618976345,0.12839468,3134.3,3134.0,0.00081059]
[1642618976543,21.27941,3134.1,3134.0,0.00081059]
[1642618976745,21.40691,3134.1,3134.0,0.00081059]
[1642618977986,22.40691,3134.1,3134.0,0.00081059]
[1642618978184,5.6,3133.9,3133.1,2.42354775]
[1642618978484,24.37,3134.0,3133.0,2.42354775]
[1642618978485,18.7975,3133.8,3133.0,2.42354775]
[1642618978684,18.67,3133.6,3133.2,0.00454739]
[1642618978885,0.1275,3133.5,3133.2,2.42354775]
[1642618979084,19.67,3133.7,3133.2,2.42354775]
[1642618979085,0.1275,3133.6,3133.2,2.42354775]
[1642618979286,0.15941,3133.5,3133.3,0.00397896]
[1642618980296,0.15941,3133.8,3133.3,0.00397896]
[1642618980743,0.15941,3133.8,3133.4,2.42354775]
[1642618980936,0.15941,3134.0,3133.6,1.20751479]
[1642618981239,0.15941,3134.0,3133.7,0.00170527]
[1642618982538,0.28691,3134.2,3133.7,0.00170527]
[1642618982738,0.15941,3134.2,3133.7,2.42525302]
[1642618983138,3.35941,3134.2,3133.8,0.00113684]
[1642618983941,3.35941,3134.2,3133.6,1.50751479]
[1642618983942,18.67,3134.1,3133.7,0.00170527]
[1642618984140,18.7975,3134.1,3133.7,0.00170527]
[1642618984792,0.15941,3134.0,3133.5,2.42638987]
[1642618984993,0.1275,3133.9,3133.5,0.00284212]
[1642618985193,0.1275,3133.9,3133.6,0.00227369]
[1642618985498,0.1275,3133.9,3133.5,0.00284212]
[1642618985693,0.15941,3133.8,3133.5,0.00284212]
[1642618985892,0.15941,3133.8,3133.4,2.42695829]
[1642618986093,0.15941,3133.8,3133.5,0.00284212]
[1642618987293,0.15941,3133.8,3133.5,1.45635746]
[1642618987493,0.15941,3133.8,3133.5,1.75635746]
[1642618987693,0.15941,3133.8,3133.6,0.00227369]
[1642618987894,3.2,3134.2,3133.6,0.00227369]
[1642618987895,0.15941,3133.7,3133.6,0.00227369]
[1642618988734,0.15941,3133.7,3133.6,2.85227369]
[1642618988936,0.1275,3134.1,3133.6,3.15227369]
[1642618988937,0.15941,3134.0,3133.6,3.15227369]
[1642618989336,3.48691,3134.2,3133.7,0.00170527]
[1642618989539,3.35941,3134.2,3133.7,0.00170527]
[1642618993187,22.02941,3134.2,3133.7,0.00170527]
[1642618993390,2.84281617,3134.1,3133.7,0.00170527]
[1642618993585,2.84281617,3134.1,3133.1,3.65584775]
[1642618993586,0.1275,3134.1,3133.4,0.00341054]
[1642618994185,0.15941,3134.0,3133.4,0.00341054]
[1642618994385,0.1275,3133.9,3133.4,0.00341054]
[1642618994787,0.1275,3133.9,3133.3,0.00397896]
[1642618995189,0.15941,3133.8,3133.3,0.00397896]
[1642618997335,18.82941,3133.8,3133.3,0.00397896]
[1642618997535,0.1275,3133.7,3133.3,0.00397896]
[1642618998235,0.15941,3133.6,3133.3,0.00397896]
[1642618998636,5.85941,3133.4,3133.3,0.00397896]
[1642618998837,24.65691,3133.4,3133.3,0.00397896]
[1642618999037,25.65691,3133.4,3133.0,0.00568423]
[1642618999235,18.67,3133.2,3132.7,0.0073895]
[1642618999484,1.08526,3133.1,3132.6,0.00795793]
[1642618999688,2.08526,3133.1,3132.6,0.00795793]
[1642618999888,18.67,3133.0,3132.5,0.00852635]
[1642619000189,0.1275,3132.9,3132.5,0.00852635]
[1642619000389,0.1275,3132.9,3132.6,0.5432015]
[1642619000390,0.15941,3132.8,3132.6,0.5432015]
[1642619000588,0.1275,3132.7,3132.6,0.5432015]
[1642619001393,0.28691,3132.7,3132.6,0.5432015]
[1642619001590,0.15941,3132.7,3132.4,0.5432015]
[1642619001990,0.15941,3132.7,3132.5,0.00852635]
[1642619002888,0.15941,3132.7,3132.6,0.5432015]
[1642619003337,0.15941,3132.7,3132.6,0.55115943]
[1642619005542,21.17941,3132.7,3132.6,0.55115943]
[1642619006141,0.15941,3132.7,3132.6,0.55115943]
[1642619006637,2.40941,3132.7,3132.6,0.55115943]
[1642619006837,21.07941,3132.7,3132.6,0.55115943]
[1642619007086,2.40941,3132.7,3132.6,0.55115943]
[1642619007885,2.40941,3132.7,3132.6,0.00795793]
[1642619007886,21.07941,3132.7,3132.6,0.00795793]
[1642619008286,21.07941,3132.7,3132.4,0.00909477]
[1642619008888,21.07941,3132.7,3132.3,0.0096632]
[1642619009088,21.07941,3132.7,3132.2,0.01023162]
[1642619010741,21.07941,3132.7,3131.7,0.01307374]
[1642619010936,21.87783,3132.7,3131.7,0.01307374]
[1642619011135,21.87783,3132.7,3131.7,0.31307374]
[1642619011340,0.1277,3132.6,3131.7,0.31307374]
[1642619011537,0.1277,3132.6,3131.8,0.01250531]
[1642619011736,0.15941,3132.5,3131.8,0.01250531]
[1642619011936,0.1277,3132.4,3131.8,0.01250531]
[1642619012336,0.1277,3132.6,3131.6,0.01364216]
[1642619013136,0.15941,3132.5,3131.6,2.43718991]
[1642619013339,0.1277,3132.4,3131.6,2.43718991]
[1642619013538,0.1277,3132.4,3131.7,0.01307374]
[1642619014793,0.28711,3132.8,3131.7,0.01307374]
[1642619014995,0.28711,3132.8,3131.6,2.43718991]
[1642619015194,0.28711,3132.8,3131.7,0.01307374]
[1642619015395,18.95711,3132.8,3131.7,0.01307374]
[1642619015993,18.95711,3132.8,3131.6,0.01364216]
[1642619017194,0.79842,3132.7,3131.6,0.01364216]
[1642619017393,0.1277,3132.6,3131.6,0.01364216]
[1642619017595,18.7977,3132.6,3131.6,0.01364216]
[1642619017794,0.15941,3132.5,3131.6,0.01364216]
[1642619017997,0.1277,3132.4,3131.6,0.01364216]
[1642619021767,0.1277,3132.4,3131.6,0.3]
[1642619021988,18.7977,3132.4,3131.4,0.01477901]
[1642619022189,18.7977,3132.4,3131.3,1.75113417]
[1642619022190,21.9977,3132.4,3131.7,0.01307374]
[1642619022392,3.56716843,3132.3,3131.4,0.01477901]
[1642619022597,0.1277,3132.2,3131.4,0.01477901]
[1642619022794,0.15941,3132.1,3131.4,0.01477901]
[1642619022995,0.1277,3132.0,3131.4,0.01477901]
[1642619023194,0.1277,3132.0,3131.2,0.01591585]
[1642619023798,0.15941,3131.9,3131.2,0.01591585]
[1642619024197,0.1277,3131.8,3131.2,0.01591585]
[1642619024405,18.7977,3131.8,3131.2,0.01591585]
[1642619024798,18.7977,3131.8,3130.9,0.01762113]
[1642619024999,0.15941,3131.7,3130.9,0.01762113]
[1642619025200,0.1277,3131.6,3130.9,0.01762113]
[1642619025402,0.1277,3131.6,3130.8,0.01818955]
[1642619025598,0.1277,3131.6,3130.5,0.01989482]
[1642619025848,0.1277,3131.6,3130.5,0.31989482]
[1642619026049,0.1277,3131.6,3130.6,1.42629813]
[1642619026249,0.1277,3131.6,3130.6,1.44562453]
[1642619026451,0.1277,3131.6,3130.7,0.01875797]
[1642619026859,0.1277,3131.6,3130.5,0.09645797]
[1642619027060,0.00454739,3131.5,3130.5,0.09645797]
[1642619027457,0.00397896,3131.4,3130.5,0.09645797]
[1642619027860,0.00341054,3131.3,3130.5,0.09645797]
[1642619028259,0.00284212,3131.2,3130.5,0.09645797]
[1642619028660,0.00227369,3131.1,3130.5,0.09645797]
[1642619029161,0.00170527,3131.0,3130.5,0.09645797]
[1642619029591,0.00113684,3130.9,3130.5,0.39645797]
[1642619029790,0.00033684,3130.9,3130.5,0.39645797]
[1642619030290,0.00033684,3130.9,3130.6,0.00136843]
[1642619030487,0.00033684,3130.9,3130.6,0.30136843]
[1642619030688,0.00033684,3130.9,3130.6,0.00136843]
[1642619030887,0.00033684,3130.9,3130.7,0.0008]
[1642619032490,3.20033684,3130.9,3130.7,0.0008]
[1642619032689,3.20033684,3130.9,3130.5,0.00193685]
[1642619032889,3.20033684,3130.9,3130.5,0.30193685]
[1642619033536,3.20033684,3130.9,3130.5,0.00193685]
[1642619033837,3.20033684,3130.9,3130.5,0.30193685]
[1642619034236,3.20033684,3130.9,3130.5,0.00193685]
[1642619037289,3.20033684,3130.9,3130.5,0.30193685]
[1642619037486,3.20033684,3130.9,3130.5,0.00193685]
[1642619038789,0.1277,3130.8,3130.3,0.0030737]
[1642619038989,0.1277,3130.8,3130.1,0.00421054]
[1642619039189,3.20033684,3130.9,3130.1,0.00421054]
[1642619039389,0.15941,3130.8,3130.0,0.41121054]
[1642619039589,0.28711,3130.8,3129.9,1.2429]
[1642619039792,0.00341054,3130.7,3129.8,0.22867362]
[1642619040188,0.00284211,3130.6,3129.9,0.00113685]
[1642619040492,0.00227369,3130.5,3129.9,1.59854685]
[1642619040756,0.28711,3130.4,3129.9,0.00113685]
[1642619040964,0.28881527,3130.4,3129.9,0.00113685]
[1642619041160,18.67113684,3130.3,3129.8,0.00170527]
[1642619041358,18.67113684,3130.3,3129.1,0.03]
[1642619041359,4.6187243,3130.2,3129.2,0.00511581]
[1642619041562,0.79907,3130.0,3129.2,0.00511581]
[1642619041757,0.1278,3129.9,3129.2,0.00511581]
[1642619042159,0.15941,3129.8,3129.2,0.00511581]
[1642619042360,0.1278,3129.7,3129.2,0.00511581]
[1642619042958,0.1278,3129.7,3129.2,1.12584568]
[1642619043161,0.1278,3129.7,3129.2,0.00511581]
[1642619043361,0.1278,3130.1,3129.3,0.00454739]
[1642619043561,0.1278,3130.1,3129.4,1.69738835]
[1642619043762,0.1278,3130.2,3129.4,1.99738835]
[1642619043962,0.1278,3130.2,3129.5,0.00341054]
[1642619045096,0.1278,3130.2,3129.2,1.52730802]
[1642619045294,0.28721,3130.2,3129.2,1.52730802]
[1642619045494,0.28721,3130.2,3129.4,0.3]
[1642619045692,0.28721,3130.2,3129.4,0.6]
[1642619045892,0.28721,3130.2,3129.5,0.00341054]
[1642619048438,0.28721,3130.2,3129.2,1.4938229]
[1642619048841,0.1278,3130.2,3129.3,0.00454739]
[1642619049642,0.15941,3130.1,3129.3,0.30454739]
[1642619049843,0.1278,3130.0,3129.3,0.30454739]
[1642619050042,0.1278,3130.0,3129.4,0.00397897]
[1642619050746,0.1278,3130.0,3129.1,0.00568424]
[1642619050946,0.1278,3130.2,3129.3,1.33951551]
[1642619051145,0.1278,3130.2,3129.3,1.63951551]
[1642619051345,0.1278,3130.2,3129.4,0.00397897]
[1642619052684,3.2,3130.2,3129.4,0.00397897]
[1642619053887,3.3278,3130.2,3129.4,0.00397897]
[1642619055586,3.3278,3130.2,3129.4,0.30397897]
[1642619056042,3.2,3130.2,3129.5,0.00341054]
[1642619056240,3.3278,3130.2,3129.5,0.00341054]
[1642619056442,2.97854792,3130.1,3129.5,0.00341054]
[1642619056643,0.28721,3130.0,3129.5,0.00341054]
[1642619056843,0.28721,3130.0,3128.8,0.01201211]
[1642619056844,0.28721,3130.0,3129.4,0.00397897]
[1642619057044,0.1278,3130.0,3128.9,0.00682108]
[1642619058048,0.1278,3130.0,3128.7,0.00795793]
[1642619058246,0.1278,3130.0,3128.8,0.1278]
[1642619058645,0.1278,3130.0,3128.9,0.00682108]
[1642619059147,3.15915905,3130.0,3128.9,0.00682108]
[1642619059345,21.82915905,3130.0,3128.9,0.00682108]
[1642619059796,3.15915905,3130.0,3128.9,0.30682108]
[1642619059993,0.1278,3130.0,3128.9,0.30682108]
[1642619060193,0.1278,3130.0,3129.0,0.00625266]
[1642619060791,0.1278,3130.0,3128.8,0.00738951]
[1642619061393,21.77634792,3130.0,3128.8,0.00738951]
[1642619061595,1.0,3129.9,3128.8,0.00738951]
[1642619061796,0.28721,3129.8,3128.8,0.00738951]
[1642619063639,0.1278,3129.8,3128.8,0.00738951]
[1642619063837,3.18461942,3129.9,3128.7,0.1278]
[1642619064037,3.05681942,3129.9,3128.7,0.13575793]
[1642619064237,3.05681942,3129.9,3128.8,0.00738951]
[1642619064438,3.05681942,3129.9,3128.9,0.1278]
[1642619064844,3.05681942,3129.9,3129.0,0.00625266]
[1642619065043,0.1278,3129.8,3129.0,0.00625266]
[1642619065443,0.1278,3129.8,3128.7,0.00795793]
[1642619068296,0.08003471,3129.7,3128.7,0.00795793]
[1642619068503,0.1278,3129.6,3128.7,0.00795793]
[1642619068895,0.1278,3129.6,3128.5,4.6662]
[1642619068896,0.1278,3129.6,3128.6,0.00852635]
[1642619069701,0.15941,3129.5,3128.6,0.00852635]
[1642619069900,18.7978,3129.4,3128.6,0.00852635]
[1642619070100,3.42283665,3129.3,3128.6,0.00852635]
[1642619070298,3.42283665,3129.3,3128.4,1.135]
[1642619070299,0.1278,3129.2,3128.5,0.00909478]
[1642619070501,0.457,3129.1,3128.5,0.00909478]
[1642619070746,22.63663171,3129.0,3128.5,0.00909478]
[1642619070949,22.63663171,3129.0,3128.1,1.7172346]
[1642619070950,22.63663171,3129.0,3128.2,0.01080005]
[1642619071156,18.84379229,3129.0,3128.2,0.01080005]
[1642619071351,0.03404242,3128.9,3128.2,0.01080005]
[1642619071652,0.1278,3129.0,3128.2,0.01080005]
[1642619072252,0.1278,3129.3,3128.6,1.32292495]
[1642619072451,0.1278,3129.4,3128.2,0.13860005]
[1642619072651,3.2,3129.0,3128.7,0.00795793]
[1642619072851,3.2,3129.0,3128.5,0.3]
[1642619073052,3.2,3129.0,3128.6,0.00852635]
[1642619073252,3.2,3129.0,3128.1,2.09796095]
[1642619073452,3.2,3129.0,3128.1,3.25214954]
[1642619073656,0.16111527,3128.9,3128.4,0.00113685]
[1642619073853,0.1278,3128.8,3128.4,0.00113685]
[1642619074057,0.12893684,3128.8,3128.4,0.00113685]
[1642619074258,0.79939,3128.7,3128.4,0.00113685]
[1642619074508,23.27941,3128.5,3128.4,0.00113685]
[1642619074699,23.40721,3128.5,3128.4,0.00113685]
[1642619075200,0.28721,3128.5,3128.4,0.00113685]
[1642619076701,4.33721,3128.5,3128.4,0.00113685]
[1642619078339,26.35821846,3128.5,3128.4,0.00113685]
[1642619078540,3.63821846,3128.5,3128.4,0.00113685]
[1642619078741,2.78721,3128.5,3128.4,0.00113685]
[1642619078945,2.65941,3128.5,3128.4,0.00113685]
[1642619079245,2.78721,3128.5,3128.4,0.00113685]
[1642619080446,0.00113684,3128.8,3128.4,0.00113685]
[1642619081454,18.67113684,3128.8,3128.4,0.00113685]
[1642619082091,0.00113684,3128.8,3128.4,0.00113685]
[1642619084393,18.67,3128.7,3128.4,0.00113685]
[1642619085096,0.00113684,3128.8,3128.4,0.00113685]
[1642619085295,2.99624357,3128.8,3128.4,0.00113685]
[1642619085496,21.66624357,3128.8,3128.2,0.0022737]
[1642619086838,0.1278,3128.7,3128.2,0.0022737]
[1642619087244,0.28721,3128.7,3128.2,0.0022737]
[1642619087443,18.67,3128.6,3128.2,0.0022737]
[1642619087743,18.7978,3128.5,3128.2,0.0022737]
[1642619087944,18.67,3128.5,3128.2,0.0022737]
[1642619088143,3.01690959,3128.4,3128.2,0.0022737]
[1642619088342,0.1278,3128.6,3128.2,0.0022737]
[1642619088543,0.15941,3128.5,3128.2,0.0022737]
[1642619089149,0.1278,3128.6,3128.2,0.0022737]
[1642619089345,18.67,3128.7,3128.2,0.0022737]
[1642619090194,0.16054684,3128.8,3128.2,0.0022737]
[1642619093093,18.83054684,3128.8,3128.2,0.0022737]
[1642619093337,18.67,3128.6,3128.2,0.0022737]
[1642619093537,0.1278,3128.7,3128.2,0.0022737]
[1642619094841,0.16054684,3128.8,3128.2,0.0022737]
[1642619097092,0.00113684,3128.8,3128.2,0.0022737]
[1642619098294,18.67113684,3128.8,3128.2,0.0022737]
[1642619098493,22.09942902,3128.7,3128.2,0.0022737]
[1642619098693,2.93150768,3128.6,3128.2,0.0022737]
[1642619099294,21.60150768,3128.6,3128.2,0.0022737]
[1642619099505,0.12893684,3128.8,3128.2,0.0022737]
[1642619100300,0.00113684,3128.8,3128.6,1.18591958]
[1642619100500,2.50113684,3128.8,3128.7,1.87393968]
[1642619100769,2.50113684,3128.8,3128.7,1.27393968]
[1642619101054,2.50113684,3128.8,3128.7,1.57393968]
[1642619101853,0.00113684,3128.8,3128.7,1.57393968]
[1642619102064,0.00113684,3128.8,3128.7,1.82393968]
[1642619103255,0.00113684,3128.8,3128.7,1.77393968]
[1642619103858,0.00113684,3128.8,3128.7,2.67583968]
[1642619104059,3.2,3129.0,3128.7,2.80363968]
[1642619104259,3.2,3129.0,3128.7,2.67583968]
[1642619104495,0.00170527,3128.9,3128.7,2.67583968]
[1642619104900,0.00113684,3128.8,3128.7,2.67583968]
[1642619105100,0.00113684,3128.8,3128.7,1.77393968]
[1642619112389,0.00113684,3128.8,3128.7,4.32393968]
[1642619113390,0.00113684,3128.8,3128.7,1.77393968]
[1642619114393,0.00113684,3128.8,3128.2,0.0022737]
[1642619114600,2.84859518,3128.8,3128.2,0.0022737]
[1642619114798,6.0137304,3128.7,3128.2,0.0022737]
[1642619114999,0.1278,3128.7,3128.2,0.0022737]
[1642619115200,2.71991348,3128.6,3128.2,0.0022737]
[1642619115397,2.71991348,3128.6,3128.1,2.1894346]
[1642619115843,0.1278,3128.7,3128.1,3.64758921]
[1642619116044,0.00113684,3128.8,3128.1,3.64758921]
[1642619117043,0.00113684,3128.8,3128.2,0.79911]
[1642619117245,2.72084862,3128.8,3128.3,0.3]
[1642619117445,0.00113684,3128.8,3128.3,0.60170528]
[1642619118647,0.00113684,3128.8,3128.4,0.1278]
[1642619119249,0.00113684,3128.8,3128.3,0.60170528]
[1642619119514,0.00113684,3128.8,3128.3,0.00170528]
[1642619119908,0.00113684,3128.8,3128.2,0.0022737]
[1642619120515,0.00113684,3128.8,3128.2,0.6022737]
[1642619122415,0.00113684,3128.8,3128.2,0.0022737]
[1642619122613,2.88015511,3128.8,3128.2,0.0022737]
[1642619122818,21.51740827,3128.7,3128.2,0.0022737]
[1642619123017,2.71960827,3128.6,3128.2,0.0022737]
[1642619123253,0.1278,3128.5,3128.2,0.0022737]
[1642619123454,2.71960827,3128.4,3128.2,0.0022737]
[1642619123654,0.1278,3128.3,3128.2,0.0022737]
[1642619123855,2.84740827,3128.3,3128.2,0.0022737]
[1642619124257,0.1278,3128.3,3128.2,0.0022737]